{"text_format":"1","workbook":"xlsx","n_sheets":2,"sheets":["Default MW","Sheet2"],"not_rendered":{"charts":0,"images":2,"macros":1,"external_links":0,"defined_names":0,"comments":0,"pivot_tables":0},"unopened":[],"bounds":{"document_bytes":16777216,"sheet_cells":100000,"rows_first":2000,"rows_last":500,"rows_between":2000,"halvings":0,"cell_chars":16384,"cell_head_chars":4096},"cells_cut":0,"cells_raw":0,"read":"whole","date_system":"1900"}

{"sheet":"Default MW","index":0,"n_rows":80,"n_cols":22,"rows_kept":80,"cut":false,"hidden":false,"merged":[]}
["Trading symbol","LTP","Bid qty","Bid rate","Ask rate","Ask qty","LTQ","Open","High","Low","Prev close","Volume traded today","Open interest","ATP","Total bid qty","Total ask qty","Exchange","Upper ckt price","Lower ckt price","LTT","LUT",1]
[{"$f":"RTD(\"pi.rtdserver\", ,\"NFO_NIFTY17OCTFUT\", \"TradingSymbol\")","v":"N.A."},{"$f":"RTD(\"pi.rtdserver\", ,\"NFO_NIFTY17OCTFUT\", \"Last\")","v":"N.A."},{"$f":"RTD(\"pi.rtdserver\", ,\"NFO_NIFTY17OCTFUT\", \"BidSize\")","v":"N.A."},{"$f":"RTD(\"pi.rtdserver\", ,\"NFO_NIFTY17OCTFUT\", \"Bid\")","v":"N.A."},{"$f":"RTD(\"pi.rtdserver\", ,\"NFO_NIFTY17OCTFUT\", \"Ask\")","v":"N.A."},{"$f":"RTD(\"pi.rtdserver\", ,\"NFO_NIFTY17OCTFUT\", \"AskSize\")","v":"N.A."},{"$f":"RTD(\"pi.rtdserver\", ,\"NFO_NIFTY17OCTFUT\", \"LTQ\")","v":"N.A."},{"$f":"RTD(\"pi.rtdserver\", ,\"NFO_NIFTY17OCTFUT\", \"Open\")","v":"N.A."},{"$f":"RTD(\"pi.rtdserver\", ,\"NFO_NIFTY17OCTFUT\", \"High\")","v":"N.A."},{"$f":"RTD(\"pi.rtdserver\", ,\"NFO_NIFTY17OCTFUT\", \"Low\")","v":"N.A."},{"$f":"RTD(\"pi.rtdserver\", ,\"NFO_NIFTY17OCTFUT\", \"PrevClose\")","v":"N.A."},{"$f":"RTD(\"pi.rtdserver\", ,\"NFO_NIFTY17OCTFUT\", \"Volume\")","v":"N.A."},{"$f":"RTD(\"pi.rtdserver\", ,\"NFO_NIFTY17OCTFUT\", \"OpenInterest\")","v":"N.A."},{"$f":"RTD(\"pi.rtdserver\", ,\"NFO_NIFTY17OCTFUT\", \"AverageTradePrice\")","v":"N.A."},{"$f":"RTD(\"pi.rtdserver\", ,\"NFO_NIFTY17OCTFUT\", \"TotalBidQty\")","v":"N.A."},{"$f":"RTD(\"pi.rtdserver\", ,\"NFO_NIFTY17OCTFUT\", \"TotalAskQty\")","v":"N.A."},{"$f":"RTD(\"pi.rtdserver\", ,\"NFO_NIFTY17OCTFUT\", \"Exchange\")","v":"N.A."},{"$f":"RTD(\"pi.rtdserver\", ,\"NFO_NIFTY17OCTFUT\", \"UpperCktPrice\")","v":"N.A."},{"$f":"RTD(\"pi.rtdserver\", ,\"NFO_NIFTY17OCTFUT\", \"LowerCktPrice\")","v":"N.A."},{"$f":"RTD(\"pi.rtdserver\", ,\"NFO_NIFTY17OCTFUT\", \"lastTradeTime\")","v":"N.A."},{"$f":"RTD(\"pi.rtdserver\", ,\"NFO_NIFTY17OCTFUT\", \"lastUpdateTime\")","v":"N.A."},10316.4]
[{"$f":"RTD(\"pi.rtdserver\", ,\"NFO_BANKNIFTY17OCTFUT\", \"TradingSymbol\")","v":"N.A."},{"$f":"RTD(\"pi.rtdserver\", ,\"NFO_BANKNIFTY17OCTFUT\", \"Last\")","v":"N.A."},{"$f":"RTD(\"pi.rtdserver\", ,\"NFO_BANKNIFTY17OCTFUT\", \"BidSize\")","v":"N.A."},{"$f":"RTD(\"pi.rtdserver\", ,\"NFO_BANKNIFTY17OCTFUT\", \"Bid\")","v":"N.A."},{"$f":"RTD(\"pi.rtdserver\", ,\"NFO_BANKNIFTY17OCTFUT\", \"Ask\")","v":"N.A."},{"$f":"RTD(\"pi.rtdserver\", ,\"NFO_BANKNIFTY17OCTFUT\", \"AskSize\")","v":"N.A."},{"$f":"RTD(\"pi.rtdserver\", ,\"NFO_BANKNIFTY17OCTFUT\", \"LTQ\")","v":"N.A."},{"$f":"RTD(\"pi.rtdserver\", ,\"NFO_BANKNIFTY17OCTFUT\", \"Open\")","v":"N.A."},{"$f":"RTD(\"pi.rtdserver\", ,\"NFO_BANKNIFTY17OCTFUT\", \"High\")","v":"N.A."},{"$f":"RTD(\"pi.rtdserver\", ,\"NFO_BANKNIFTY17OCTFUT\", \"Low\")","v":"N.A."},{"$f":"RTD(\"pi.rtdserver\", ,\"NFO_BANKNIFTY17OCTFUT\", \"PrevClose\")","v":"N.A."},{"$f":"RTD(\"pi.rtdserver\", ,\"NFO_BANKNIFTY17OCTFUT\", \"Volume\")","v":"N.A."},{"$f":"RTD(\"pi.rtdserver\", ,\"NFO_BANKNIFTY17OCTFUT\", \"OpenInterest\")","v":"N.A."},{"$f":"RTD(\"pi.rtdserver\", ,\"NFO_BANKNIFTY17OCTFUT\", \"AverageTradePrice\")","v":"N.A."},{"$f":"RTD(\"pi.rtdserver\", ,\"NFO_BANKNIFTY17OCTFUT\", \"TotalBidQty\")","v":"N.A."},{"$f":"RTD(\"pi.rtdserver\", ,\"NFO_BANKNIFTY17OCTFUT\", \"TotalAskQty\")","v":"N.A."},{"$f":"RTD(\"pi.rtdserver\", ,\"NFO_BANKNIFTY17OCTFUT\", \"Exchange\")","v":"N.A."},{"$f":"RTD(\"pi.rtdserver\", ,\"NFO_BANKNIFTY17OCTFUT\", \"UpperCktPrice\")","v":"N.A."},{"$f":"RTD(\"pi.rtdserver\", ,\"NFO_BANKNIFTY17OCTFUT\", \"LowerCktPrice\")","v":"N.A."},{"$f":"RTD(\"pi.rtdserver\", ,\"NFO_BANKNIFTY17OCTFUT\", \"lastTradeTime\")","v":"N.A."},{"$f":"RTD(\"pi.rtdserver\", ,\"NFO_BANKNIFTY17OCTFUT\", \"lastUpdateTime\")","v":"N.A."},3]
[null,null,null,null,null,null,null,null,null,null,null,null,null,null,null,null,null,null,null,null,null,4]
[null,null,null,null,null,null,null,null,null,null,null,null,null,null,null,null,null,null,null,null,null,5]
[null,null,null,null,null,null,null,null,null,null,null,null,null,null,null,null,null,null,null,null,null,6]
[null,null,null,null,null,null,null,null,null,null,null,null,null,null,null,null,null,null,null,null,null,7]
[null,null,null,null,null,null,null,null,null,null,null,null,null,null,null,null,null,null,null,null,null,8]
[null,null,null,null,null,null,null,null,null,null,null,null,null,null,null,null,null,null,null,null,null,9]
[null,null,null,null,null,null,null,null,null,null,null,null,null,null,null,null,null,null,null,null,null,10]
[null,null,null,null,null,null,null,null,null,null,null,null,null,null,null,null,null,null,null,null,null,11]
[null,null,null,null,null,null,null,null,null,null,null,null,null,null,null,null,null,null,null,null,null,12]
[null,null,null,null,null,null,null,null,null,null,null,null,null,null,null,null,null,null,null,null,null,13]
[null,null,null,null,null,null,null,null,null,null,null,null,null,null,null,null,null,null,null,null,null,14]
[null,null,null,null,null,null,null,null,null,null,null,null,null,null,null,null,null,null,null,null,null,15]
[null,null,null,null,null,null,null,null,null,null,null,null,null,null,null,null,null,null,null,null,null,16]
[null,null,null,null,null,null,null,null,null,null,null,null,null,null,null,null,null,null,null,null,null,17]
[null,null,null,null,null,null,null,null,null,null,null,null,null,null,null,null,null,null,null,null,null,18]
[null,null,null,null,null,null,null,null,null,null,null,null,null,null,null,null,null,null,null,null,null,19]
[null,null,null,null,null,null,null,null,null,null,null,null,null,null,null,null,null,null,null,null,null,20]
[null,null,null,null,null,null,null,null,null,null,null,null,null,null,null,null,null,null,null,null,null,21]
[null,null,null,null,null,null,null,null,null,null,null,null,null,null,null,null,null,null,null,null,null,22]
[null,null,null,null,null,null,null,null,null,null,null,null,null,null,null,null,null,null,null,null,null,23]
[null,null,null,null,null,null,null,null,null,null,null,null,null,null,null,null,null,null,null,null,null,24]
[null,null,null,null,null,null,null,null,null,null,null,null,null,null,null,null,null,null,null,null,null,25]
[null,null,null,null,null,null,null,null,null,null,null,null,null,null,null,null,null,null,null,null,null,26]
[null,null,null,null,null,null,null,null,null,null,null,null,null,null,null,null,null,null,null,null,null,27]
[null,null,null,null,null,null,null,null,null,null,null,null,null,null,null,null,null,null,null,null,null,28]
[null,null,null,null,null,null,null,null,null,null,null,null,null,null,null,null,null,null,null,null,null,29]
[null,null,null,null,null,null,null,null,null,null,null,null,null,null,null,null,null,null,null,null,null,30]
[null,null,null,null,null,null,null,null,null,null,null,null,null,null,null,null,null,null,null,null,null,31]
[null,null,null,null,null,null,null,null,null,null,null,null,null,null,null,null,null,null,null,null,null,32]
[null,null,null,null,null,null,null,null,null,null,null,null,null,null,null,null,null,null,null,null,null,33]
[null,null,null,null,null,null,null,null,null,null,null,null,null,null,null,null,null,null,null,null,null,34]
[null,null,null,null,null,null,null,null,null,null,null,null,null,null,null,null,null,null,null,null,null,35]
[null,null,null,null,null,null,null,null,null,null,null,null,null,null,null,null,null,null,null,null,null,36]
[null,null,null,null,null,null,null,null,null,null,null,null,null,null,null,null,null,null,null,null,null,37]
[null,null,null,null,null,null,null,null,null,null,null,null,null,null,null,null,null,null,null,null,null,38]
[null,null,null,null,null,null,null,null,null,null,null,null,null,null,null,null,null,null,null,null,null,39]
[null,null,null,null,null,null,null,null,null,null,null,null,null,null,null,null,null,null,null,null,null,40]
[null,null,null,null,null,null,null,null,null,null,null,null,null,null,null,null,null,null,null,null,null,41]
[null,null,null,null,null,null,null,null,null,null,null,null,null,null,null,null,null,null,null,null,null,42]
[null,null,null,null,null,null,null,null,null,null,null,null,null,null,null,null,null,null,null,null,null,43]
[null,null,null,null,null,null,null,null,null,null,null,null,null,null,null,null,null,null,null,null,null,44]
[null,null,null,null,null,null,null,null,null,null,null,null,null,null,null,null,null,null,null,null,null,45]
[null,null,null,null,null,null,null,null,null,null,null,null,null,null,null,null,null,null,null,null,null,46]
[null,null,null,null,null,null,null,null,null,null,null,null,null,null,null,null,null,null,null,null,null,47]
[null,null,null,null,null,null,null,null,null,null,null,null,null,null,null,null,null,null,null,null,null,48]
[null,null,null,null,null,null,null,null,null,null,null,null,null,null,null,null,null,null,null,null,null,49]
[null,null,null,null,null,null,null,null,null,null,null,null,null,null,null,null,null,null,null,null,null,50]
[null,null,null,null,null,null,null,null,null,null,null,null,null,null,null,null,null,null,null,null,null,51]
[null,null,null,null,null,null,null,null,null,null,null,null,null,null,null,null,null,null,null,null,null,52]
[null,null,null,null,null,null,null,null,null,null,null,null,null,null,null,null,null,null,null,null,null,53]
[null,null,null,null,null,null,null,null,null,null,null,null,null,null,null,null,null,null,null,null,null,54]
[null,null,null,null,null,null,null,null,null,null,null,null,null,null,null,null,null,null,null,null,null,55]
[null,null,null,null,null,null,null,null,null,null,null,null,null,null,null,null,null,null,null,null,null,56]
[null,null,null,null,null,null,null,null,null,null,null,null,null,null,null,null,null,null,null,null,null,57]
[null,null,null,null,null,null,null,null,null,null,null,null,null,null,null,null,null,null,null,null,null,58]
[null,null,null,null,null,null,null,null,null,null,null,null,null,null,null,null,null,null,null,null,null,59]
[null,null,null,null,null,null,null,null,null,null,null,null,null,null,null,null,null,null,null,null,null,60]
[null,null,null,null,null,null,null,null,null,null,null,null,null,null,null,null,null,null,null,null,null,61]
[null,null,null,null,null,null,null,null,null,null,null,null,null,null,null,null,null,null,null,null,null,62]
[null,null,null,null,null,null,null,null,null,null,null,null,null,null,null,null,null,null,null,null,null,63]
[null,null,null,null,null,null,null,null,null,null,null,null,null,null,null,null,null,null,null,null,null,64]
[null,null,null,null,null,null,null,null,null,null,null,null,null,null,null,null,null,null,null,null,null,65]
[null,null,null,null,null,null,null,null,null,null,null,null,null,null,null,null,null,null,null,null,null,66]
[null,null,null,null,null,null,null,null,null,null,null,null,null,null,null,null,null,null,null,null,null,67]
[null,null,null,null,null,null,null,null,null,null,null,null,null,null,null,null,null,null,null,null,null,68]
[null,null,null,null,null,null,null,null,null,null,null,null,null,null,null,null,null,null,null,null,null,69]
[null,null,null,null,null,null,null,null,null,null,null,null,null,null,null,null,null,null,null,null,null,70]
[null,null,null,null,null,null,null,null,null,null,null,null,null,null,null,null,null,null,null,null,null,71]
[null,null,null,null,null,null,null,null,null,null,null,null,null,null,null,null,null,null,null,null,null,72]
[null,null,null,null,null,null,null,null,null,null,null,null,null,null,null,null,null,null,null,null,null,73]
[null,null,null,null,null,null,null,null,null,null,null,null,null,null,null,null,null,null,null,null,null,74]
[null,null,null,null,null,null,null,null,null,null,null,null,null,null,null,null,null,null,null,null,null,75]
[null,null,null,null,null,null,null,null,null,null,null,null,null,null,null,null,null,null,null,null,null,76]
[null,null,null,null,null,null,null,null,null,null,null,null,null,null,null,null,null,null,null,null,null,77]
[null,null,null,null,null,null,null,null,null,null,null,null,null,null,null,null,null,null,null,null,null,78]
[null,null,null,null,null,null,null,null,null,null,null,null,null,null,null,null,null,null,null,null,null,79]
[null,null,null,null,null,null,null,null,null,null,null,null,null,null,null,null,null,null,null,null,null,80]

{"sheet":"Sheet2","index":1,"n_rows":0,"n_cols":0,"rows_kept":0,"cut":false,"hidden":false,"merged":[]}